[Event "ESP-ch Teams Honor 2024"]
[Site "Melilla"]
[Date "2024.10.14"]
[Round "3.9"]
[White "Korobov, Anton"]
[Black "Grigoryan, Karen H."]
[Result "0-1"]
[ECO "A20"]
[WhiteElo "2660"]
[BlackElo "2582"]
[Annotator "TA"]
[PlyCount "116"]
[EventDate "2024.10.11"]
[EventType "team-tourn"]
[EventCountry "ESP"]
[SourceTitle "playchess.com"]
[Source "ChessBase"]
[SourceQuality "1"]
[WhiteTeam "Silla"]
[BlackTeam "Benalmadena"]
[TimeControl "5400+30"]

{[%evp 42,116,18,0,0,0,0,0,0,-16,-26,-57,-51,-44,-41,-69,-76,-78,-70,-84,-67,-74,-82,-74,-74,-75,-78,-120,-129,-210,-177,-205,-120,-383,-383,-376,-376,-361,-361,-362,-400,-356,-569,-571,-576,-576,-576,-696,-682,-675,-667,-660,-647,-645,-583,-571,-519,-1389,-1504,-1339,-1316,-1508,-892,-892,-892,-1203,-1087,-4141,-3478,-2483,-1126,-4135,-4135,-4133,-1689,-12817,-3379]} 1. c4 {[%emt 0:00:11]} e5 {[%emt 0:02:31]} 2. d3 {[%emt 0:00:48]} Bb4+ {[%emt 0:02:44]} 3. Nd2 {[%emt 0:02:02]} a5 {[%emt 0:00:24]} 4. Ngf3 {[%emt 0:00:40]} Nc6 {[%emt 0:00:28]} 5. a3 {[%emt 0:03:29]} Bxd2+ $146 {[%emt 0:01:13]} ({Predecessor:} 5... Bc5 6. e3 d6 7. b3 Nf6 8. Bb2 h6 9. d4 exd4 10. exd4 Ba7 11. Qc2 Qe7+ {½-½ Idani,P (2631)-Ikramul,H (2099) BAN-chT Premier 2022 (9.4)}) 6. Nxd2 {[%emt 0:01:49] A20: English Opening: 1...e5.} a4 {[%emt 0:01:23]} 7. e3 {[%emt 0:02:08]} Nge7 {[%emt 0:03:52]} 8. Be2 {[%emt 0:01:08]} d5 {[%emt 0:01:22]} 9. O-O {[%emt 0:06:05]} Be6 {[%emt 0:02:33]} 10. b4 {[%emt 0:02:28]} axb3 {[%emt 0:00:06]} 11. Nxb3 {[%emt 0:01:10]} dxc4 {[%emt 0:07:53]} 12. dxc4 {[%emt 0:00:28]} Qxd1 {[%emt 0:00:16]} 13. Rxd1 {[%emt 0:00:05]} b6 {[%emt 0:00:51]} 14. Bb2 {[%emt 0:04:12]} f6 {[%emt 0:03:02]} 15. Nd2 {[%emt 0:05:27]} O-O {[%emt 0:02:31]} 16. c5 {[%emt 0:06:34]} bxc5 {[%emt 0:01:55]} 17. Ne4 {[%emt 0:03:08]} c4 {[%emt 0:03:10]} 18. Bc3 {[%emt 0:06:21]} Rfb8 {[%emt 0:07:06]} 19. a4 {[%emt 0:04:55]} Ra7 {[%emt 0:07:39]} 20. g4 {[%emt 0:03:51]} h6 {[%emt 0:08:21]} 21. Nc5 {[%emt 0:04:51]} Bf7 {[%emt 0:00:32]} 22. Bf3 {[%emt 0:00:08]} Na5 {[%emt 0:04:56]} 23. Rd7 {[%emt 0:02:32]} Nec6 {[%emt 0:02:24]} 24. Rad1 {[%emt 0:09:56]} Be8 $1 {[%emt 0:03:38]} 25. R7d5 {[%emt 0:05:03]} (25. Ne6 $5 Bxd7 26. Rxd7 $16) 25... Nb3 {[%emt 0:03:55]} 26. h4 {[%emt 0:03:15]} Ne7 {[%emt 0:03:40]} 27. Nxb3 $1 {[%emt 0:05:17]} Rxb3 {[%emt 0:04:40]} 28. Rd8 {[%emt 0:00:01]} Kf7 {[%emt 0:00:53]} 29. Rc1 {[%emt 0:00:19]} Bxa4 {[%emt 0:04:01]} 30. g5 {[%emt 0:00:19]} hxg5 {[%emt 0:00:38]} 31. hxg5 {[%emt 0:00:02]} Bc6 {[%emt 0:00:41]} 32. Bh5+ {[%emt 0:02:56]} Ke6 $1 {[%emt 0:00:05]} 33. gxf6 {[%emt 0:00:30]} gxf6 {[%emt 0:00:06]} 34. Bg4+ {[%emt 0:00:44]} f5 {[%emt 0:01:44]} 35. Bd1 {[%emt 0:06:26]} (35. Be2 $17 Bb5 36. Rh8) 35... Rba3 $19 {[%emt 0:01:19]} 36. Be2 {[%emt 0:00:31]} Bd5 {[%emt 0:01:28]} (36... R7a4 $19 {aiming for ...Nd5.} 37. f4 exf4 38. exf4 Nd5) 37. Rh8 $2 {[%emt 0:05:57][%mdl 8192]} (37. f3 $17) 37... Rxc3 $1 $19 {[%emt 0:02:22]} 38. Rxc3 {[%emt 0:00:06]} Ra1+ {[%emt 0:00:03]} 39. Bf1 {[%emt 0:00:03] [#]} Be4 $1 {[%emt 0:00:05]} 40. Rd8 {[%emt 0:02:42] [#]} Nd5 $1 {[%emt 0:00:30]} 41. Rxc4 {[%emt 0:00:02]} Rxf1+ $1 {[%emt 0:00:13]} 42. Kxf1 {[%emt 0:00:01]} Bd3+ {[%emt 0:00:06]} 43. Ke1 {[%emt 0:00:03]} Bxc4 {[%emt 0:00:05]} 44. Kd2 {[%emt 0:00:13]} e4 {[%emt 0:00:50]} 45. Re8+ {[%emt 0:00:25]} Kf7 {[%emt 0:00:13]} 46. Rc8 {[%emt 0:00:05]} Bb5 {[%emt 0:00:08]} 47. Rb8 {[%emt 0:00:34]} c6 {[%emt 0:00:10]} 48. Rc8 {[%emt 0:00:13]} Nb4 {[%emt 0:01:53]} 49. Kc3 {[%emt 0:00:35]} (49. Rb8 $142) 49... Nd3 $19 {[%emt 0:00:20]} 50. Kd4 {[%emt 0:00:09]} c5+ {[%emt 0:00:38]} 51. Kd5 {[%emt 0:00:05]} Ba4 {[%emt 0:00:39]} 52. Rb8 {[%emt 0:01:45]} Ke7 {[%emt 0:00:36]} (52... Nxf2 53. Ke5 $19) 53. Rb6 {[%emt 0:00:46]} Be8 {[%emt 0:00:57]} 54. Re6+ {[%emt 0:01:27]} Kf8 {[%emt 0:00:14]} 55. Rb6 {[%emt 0:01:51]} Bf7+ {[%emt 0:00:07]} 56. Kd6 {[%emt 0:00:01]} c4 {[%emt 0:00:12]} ({Worse is} 56... Nxf2 57. Ke5 $15) 57. Rc6 {[%emt 0:00:17]} Kg7 {[%emt 0:00:14]} 58. Ke7 {[%emt 0:00:27]} Nxf2 {[%emt 0:01:00]} (58... Nb4 $142 59. Rc5 c3) 0-1

[Event "ESP-ch Teams Honor 2024"]
[Site "Melilla"]
[Date "2024.10.14"]
[Round "3.10"]
[White "Ladron De Guevara Pinto, Paolo"]
[Black "Yuffa, Daniil"]
[Result "0-1"]
[ECO "B66"]
[WhiteElo "2388"]
[BlackElo "2608"]
[Annotator "TA"]
[PlyCount "112"]
[EventDate "2024.10.11"]
[EventType "team-tourn"]
[EventCountry "ESP"]
[SourceTitle "playchess.com"]
[Source "ChessBase"]
[SourceQuality "1"]
[WhiteTeam "Benalmadena"]
[BlackTeam "Silla"]
[TimeControl "5400+30"]

{[%evp 33,112,45,82,73,62,32,25,28,38,39,24,22,56,51,89,88,95,47,58,56,60,73,63,59,138,133,158,170,295,-137,-86,-154,-151,-157,-7,-7,0,-6,-7,-14,-8,-8,-8,-8,-7,-24,-10,-156,-146,-144,-156,-147,-123,-183,-180,-207,-200,-219,-212,-227,-227,-222,-221,-252,-204,-279,-282,-343,-335,-445,-437,-525,-518,-521,-497,-478,-452,-620,-528,-4627,-4618]} 1. e4 {[%emt 0:00:04]} c5 {[%emt 0:00:16]} 2. Nf3 {[%emt 0:00:13]} Nc6 {[%emt 0:00:10]} 3. Nc3 {[%emt 0:01:19]} d6 {[%emt 0:00:04]} 4. d4 {[%emt 0:00:05]} cxd4 {[%emt 0:00:03]} 5. Nxd4 {[%emt 0:00:05]} Nf6 {[%emt 0:00:04]} 6. Bg5 {[%emt 0:00:06]} e6 {[%emt 0:00:05]} 7. Qd2 {[%emt 0:00:05]} a6 {[%emt 0:00:05]} 8. Nxc6 {[%emt 0:00:25] B66: Sicilian: Richter-Rauzer: 7...a6 8 0-0-0 h6.} bxc6 {[%emt 0:00:07]} 9. O-O-O {[%emt 0:00:07]} Be7 {[%emt 0:04:50]} 10. Bxf6 {[%emt 0:00:11]} gxf6 {[%emt 0:01:25]} 11. Bc4 {[%emt 0:03:45]} Bb7 {[%emt 0:08:05]} 12. Rhe1 {[%emt 0:01:31]} Qc7 {[%emt 0:05:26]} 13. f4 {[%emt 0:02:50]} d5 {[%emt 0:07:19]} 14. Bb3 {[%emt 0:03:15]} O-O-O {[%emt 0:02:40]} 15. exd5 {[%emt 0:30:59]} cxd5 {[%emt 0:00:25]} 16. f5 {[%emt 0:05:37]} Bd6 $146 {[%emt 0:04:25]} ({Predecessor:} 16... d4 17. Ne4 exf5 18. Ng3 Bd6 19. Kb1 f4 20. Nf5 Be5 21. Nh4 Kb8 22. Nf3 Rhe8 {0-1 Hovhannisyan,R (2643)-Czarnota,P (2502) Wch Blitz Warsaw 2021 (20)}) 17. g3 {[%emt 0:02:56]} (17. fxe6 $2 Bf4 $19) 17... Rhe8 {[%emt 0:04:34]} 18. Qh6 {[%emt 0:10:42]} Be5 {[%emt 0:03:26]} 19. fxe6 {[%emt 0:04:23]} fxe6 {[%emt 0:03:03]} 20. Ne2 {[%emt 0:00:28]} Kb8 {[%emt 0:05:06]} 21. Nf4 {[%emt 0:02:19]} a5 {[%emt 0:15:54]} 22. Nd3 {[%emt 0:03:38]} Rc8 {[%emt 0:09:43]} 23. Kb1 {[%emt 0:03:24]} Re7 {[%emt 0:02:51]} 24. Qh4 {[%emt 0:01:56]} Ree8 {[%emt 0:06:24]} 25. Rd2 {[%emt 0:01:46]} (25. Rc1 $16) 25... Bd6 {[%emt 0:01:44]} 26. Qxf6 {[%emt 0:01:50]} e5 {[%emt 0:00:09]} 27. c3 {[%emt 0:01:03]} e4 {[%emt 0:03:44]} 28. Nf4 {[%emt 0:01:40]} e3 {[%emt 0:02:48]} (28... Rf8 $14 29. Qh4 Bxf4 30. gxf4 Rxf4) 29. Rdd1 $16 {[%emt 0:01:08]} (29. Nxd5 $2 exd2 30. Rd1 Qc5 $19) 29... Be5 {[%emt 0:01:13]} 30. Qf5 {[%emt 0:03:51]} d4 {[%emt 0:00:24]} (30... Bxf4 $142 31. Qxf4 (31. gxf4 Qb6 $16) 31... Rcd8) 31. Nd5 $2 {[%emt 0:03:50] [#]} (31. cxd4 Bxf4 32. Qxf4 Qxf4 33. gxf4 Bf3 $17) (31. Ne6 $18 Rxe6 32. Bxe6) 31... Bxd5 $1 $17 {[%emt 0:02:32]} 32. Bxd5 {[%emt 0:00:05]} (32. cxd4 $142 Bxb3 33. axb3) 32... dxc3 $17 {[%emt 0:00:23]} 33. Qc2 {[%emt 0:03:10]} cxb2 {[%emt 0:00:30]} ({Reject} 33... Qb6 $6 34. Rxe3 Rc5 (34... Qxe3 $2 {perishes.} 35. Qb3+ Kc7 36. Qb7+ Kd6 37. Be4+ Bd4 38. Qd5+ Ke7 39. Rxd4 $18) (34... Qxb2+ 35. Qxb2+ cxb2 36. Be4 $11) 35. Bg2 $11 (35. Qxh7 $2 Qxb2#)) ({Black should play} 33... Bg7 $17 {Threatens to win with ...e2.} 34. bxc3 Qb6+ (34... Bxc3 35. Re2 $17) (34... Qxc3 35. Qxc3 Bxc3 36. Re2 $17) 35. Qb3 Qxb3+ 36. Bxb3 e2 (36... Rxc3 37. Rd7 $11) (36... Bxc3 37. Re2 $17)) 34. Qb3+ $11 {[%emt 0:01:09]} Ka7 {[%emt 0:00:05]} 35. Qxe3+ {[%emt 0:01:15]} Qb6 {[%emt 0:01:09]} 36. Qxb6+ {[%emt 0:01:52]} Kxb6 {[%emt 0:00:02]} 37. Bf7 {[%emt 0:00:09]} Re7 {[%emt 0:00:40]} 38. Bb3 {[%emt 0:02:42]} Rc5 {[%emt 0:00:41]} 39. Re2 {[%emt 0:00:34]} Rec7 {[%emt 0:00:57]} 40. Rxb2 {[%emt 0:02:38]} (40. Bc2 $11) 40... Bxb2 $17 {[%emt 0:01:59]} 41. Kxb2 {[%emt 0:00:03]} Re5 {[%emt 0:00:31]} 42. Rd2 {[%emt 0:01:28]} Ra7 {[%emt 0:01:23]} 43. a4 {[%emt 0:00:38]} (43. Ka3 $17) 43... Rc7 $19 {[%emt 0:00:26]} 44. Rd6+ {[%emt 0:00:26]} Rc6 {[%emt 0:00:49]} 45. Rd2 {[%emt 0:00:03]} Kc7 {[%emt 0:00:38]} 46. Bc2 {[%emt 0:01:01]} h6 {[%emt 0:00:45]} 47. Rf2 {[%emt 0:00:28]} Rc4 {[%emt 0:00:52]} 48. Ka2 {[%emt 0:00:41]} Kb6 {[%emt 0:00:57]} 49. Bb3 {[%emt 0:00:11]} Rb4 {[%emt 0:00:46]} 50. Bc2 {[%emt 0:00:23]} Kc5 {[%emt 0:00:20]} 51. h3 {[%emt 0:00:33]} Kd4 {[%emt 0:00:37]} 52. g4 {[%emt 0:00:10]} Kc3 {[%emt 0:00:34]} 53. Bd1 {[%emt 0:01:07]} Re1 {[%emt 0:00:33]} 54. Bb3 {[%emt 0:00:24]} Re3 {[%emt 0:00:24]} ({Stronger than} 54... Rxb3 55. Rf3+ Kb4 56. Rf4+ Kc5 57. Kxb3 $11) 55. Bd1 {[%emt 0:00:43]} Rxh3 {[%emt 0:00:37]} 56. Rg2 {[%emt 0:00:32]} Rd3 {[%emt 0:00:18]} 0-1

[Event "ESP-ch Teams Honor 2024"]
[Site "Melilla"]
[Date "2024.10.14"]
[Round "3.11"]
[White "Alonso Rosell, Alvar"]
[Black "Lin, Yingrui"]
[Result "1/2-1/2"]
[ECO "A13"]
[WhiteElo "2550"]
[BlackElo "2378"]
[Annotator "TA"]
[PlyCount "113"]
[EventDate "2024.10.11"]
[EventType "team-tourn"]
[EventCountry "ESP"]
[SourceTitle "playchess.com"]
[Source "ChessBase"]
[SourceQuality "1"]
[WhiteTeam "Silla"]
[BlackTeam "Benalmadena"]
[TimeControl "5400+30"]

{[%evp 52,113,57,57,66,51,108,0,0,-9,-11,-51,-53,-50,-60,-54,-54,-57,-60,-54,-53,-59,-58,-189,-33,-34,70,59,91,87,65,36,48,43,64,70,68,66,224,217,217,168,150,75,238,241,227,56,64,8,8,8,863,0,0,0,0,0,0,0,0,0,0,0]} 1. Nf3 {[%emt 0:00:04]} Nf6 {[%emt 0:00:22]} 2. g3 {[%emt 0:00:06]} e6 {[%emt 0:00:14]} 3. c4 {[%emt 0:01:43]} d5 {[%emt 0:01:02]} 4. b3 {[%emt 0:02:37]} b6 {[%emt 0:09:17]} 5. cxd5 {[%emt 0:01:08]} exd5 {[%emt 0:01:22]} 6. Bg2 {[%emt 0:00:19]} Bd6 {[%emt 0:00:36]} 7. O-O {[%emt 0:00:49]} O-O {[%emt 0:00:38]} 8. Bb2 {[%emt 0:00:09]} Nbd7 {[%emt 0:08:08]} 9. Nc3 {[%emt 0:00:57]} Re8 {[%emt 0:03:11]} 10. Rc1 {[%emt 0:04:59]} a6 {[%emt 0:01:29]} 11. Re1 {[%emt 0:04:40]} Bb7 {[%emt 0:05:28]} 12. e3 {[%emt 0:04:52]} c5 {[%emt 0:05:20]} 13. d4 {[%emt 0:04:25]} c4 {[%emt 0:00:22]} 14. a4 {[%emt 0:00:30]} h5 {[%emt 0:13:33]} 15. Nd2 {[%emt 0:15:26]} cxb3 {[%emt 0:01:51]} 16. Qxb3 {[%emt 0:00:09]} Ne4 {[%emt 0:00:31]} 17. Ncxe4 {[%emt 0:01:29]} dxe4 {[%emt 0:00:19]} 18. Ba3 {[%emt 0:00:06]} Bb8 {[%emt 0:01:45]} 19. Rc3 {[%emt 0:23:36]} Nf6 {[%emt 0:03:34]} 20. Rec1 {[%emt 0:00:15]} h4 {[%emt 0:03:37]} 21. Qb1 {[%emt 0:05:09]} hxg3 {[%emt 0:06:42]} 22. hxg3 {[%emt 0:00:20]} Nd5 {[%emt 0:00:38]} 23. Rb3 {[%emt 0:01:34]} f5 {[%emt 0:00:35]} 24. Nc4 {[%emt 0:01:26]} Bc7 {[%emt 0:04:19]} 25. Na5 {[%emt 0:00:49]} Bc8 {[%emt 0:01:50]} 26. Nc6 {[%emt 0:00:08]} Qd7 {[%emt 0:02:30]} 27. Nb4 {[%emt 0:06:07]} Bb7 {[%emt 0:03:40]} 28. Bf1 {[%emt 0:02:02]} f4 {[%emt 0:09:12]} (28... Kh7 $14) 29. Nxd5 {[%emt 0:10:41]} (29. Bc4 $16 Bd8 30. exf4) 29... Bxd5 $11 {[%emt 0:00:02]} 30. exf4 {[%emt 0:02:19]} e3 {[%emt 0:06:16]} 31. fxe3 {[%emt 0:00:10]} (31. Rxe3 $5 Rxe3 32. fxe3 $11) 31... Qg4 $1 {[%emt 0:00:22]} 32. e4 $1 {[%emt 0:00:32]} Bxe4 {[%emt 0:00:35]} (32... Bxb3 $2 33. Qxb3+ (33. Rxc7 $2 Qxg3+ 34. Bg2 Qe3+ 35. Kf1 Qxf4+ 36. Ke2 Bd5 $19) 33... Kh8 34. Rxc7 $18) 33. Qa2 {[%emt 0:00:12]} Bxf4 {[%emt 0:02:00]} 34. Rf3+ $1 {[%emt 0:02:53]} Kh8 {[%emt 0:00:29]} 35. Qh2+ {[%emt 0:00:32]} Bh6 {[%emt 0:00:12]} 36. Rf4 {[%emt 0:00:31]} Qd7 {[%emt 0:00:50]} 37. Bb2 {[%emt 0:02:29]} ({White should play} 37. Rh4 $15) 37... Bh7 $2 {[%emt 0:00:09]} (37... Qxa4 38. d5 Kg8 39. Qxh6 gxh6 40. Rc7 $18) (37... Kg8 $1 $19 38. Qh5 Bd5 (38... Bxf4 39. Bc4+ Re6 40. gxf4 $11)) 38. Rh4 $1 $15 {[%emt 0:00:57]} (38. Bh3 $2 Qe7 (38... Qxa4 39. d5 $17) 39. Rff1 Be3+ 40. Kh1 Bxc1 41. Bxc1 Qe4+ 42. Bg2 Qe2 $19) 38... Qd6 {[%emt 0:00:03]} (38... Qxa4 39. Rxh6 gxh6 40. Rc7 (40. d5+ Kg8 $18) (40. d5+ Kg8 $18)) (38... Qe6 $15 39. Kh1 Be4+ 40. Bg2 Bxg2+ 41. Qxg2 Kg8) 39. Rxh6 $14 {[%emt 0:01:07]} Qxh6 {[%emt 0:00:52]} 40. Qxh6 {[%emt 0:00:04]} gxh6 {[%emt 0:00:02]} 41. d5+ {[%emt 0:00:05]} Kg8 {[%emt 0:00:09]} 42. Rc7 {[%emt 0:00:05]} Bf5 {[%emt 0:02:57]} 43. g4 {[%emt 0:00:02]} Bb1 $1 {[%emt 0:01:47]} 44. d6 {[%emt 0:01:37]} Ba2 $2 {[%emt 0:00:53]} ({Black should try} 44... Re4 $1 $14) 45. Bd3 $1 $18 {[%emt 0:00:01]} Bf7 {[%emt 0:00:22]} 46. d7 {[%emt 0:00:27]} Red8 {[%emt 0:01:10]} 47. Bf5 {[%emt 0:00:45]} (47. Be4 $142 $1 {[%cal Re4a8]} Rab8 48. Be5) 47... Bb3 $2 {[%emt 0:00:26] [#]} (47... Bd5 $16) 48. Rc6 $1 $18 {[%emt 0:00:58]} Bxa4 {[%emt 0:01:19]} 49. Rg6+ $2 {[%emt 0:00:33]} (49. Be6+ Kf8 50. Ba3+ (50. Rxb6 Bxd7 51. Bd5 Rab8 $17) 50... Kg7 51. Rxb6 (51. Bb2+ Kf8 $11) 51... a5 $11 (51... Bxd7 52. Rb7 $11)) (49. Rxh6 $18 {White threatens Be6+ and mate.} Bxd7 50. Rh8+ (50. Rxb6 $2 Bxf5 51. gxf5 Rd5 $19) (50. Bxd7 Rxd7 51. Rh8+ Kf7 $11) 50... Kf7 51. Rh7+ Kf8 (51... Ke8 $2 52. Bg6+ Kf8 53. Ba3+ Kg8 54. Re7 $18) 52. Bxd7 (52. Rxd7 Rxd7 53. Bxd7 Rd8 $11)) 49... Kf7 $14 {[%emt 0:00:49]} 50. Rxh6 {[%emt 0:01:54]} (50. Rxb6 Bxd7 51. Bg6+ Kg8 $17) (50. Rg7+ $14 Kf8 51. Rh7 Bxd7 52. Bxd7) 50... Bxd7 {[%emt 0:00:50]} 51. Rh7+ {[%emt 0:00:05]} (51. Bxd7 $2 Rxd7 52. Rxb6 Rd5 $19) 51... Ke8 $2 {[%emt 0:00:23][%mdl 8192] [#]} (51... Kg8 $11 52. Bg6 (52. Rxd7 Rxd7 53. Bxd7 Rd8 $11) (52. Rg7+ Kf8 $11) 52... Kf8 53. Ba3+ Kg8) 52. Bxd7+ $2 {[%emt 0:01:02]} ({White has to play} 52. Bg6+ $1 $18 Kf8 53. Ba3+ Kg8 54. Re7 (54. Bb2 Kf8 $18) 54... Bxg4 55. Bh7+ Kf8 56. Ra7+ (56. Rb7+ Rd6 $18) 56... Rd6 57. Bxd6+ Ke8 58. Bg6+ (58. Rxa8+ Kd7 $18) 58... Kd8 59. Rxa8+ Kd7 60. Bg3) 52... Rxd7 $11 {[%emt 0:00:06]} 53. Rh8+ {[%emt 0:00:04]} Kf7 {[%emt 0:00:08]} 54. Rxa8 {[%emt 0:00:03]} Rd1+ {[%emt 0:00:03]} 55. Kf2 {[%emt 0:00:13]} Rd2+ {[%emt 0:00:14]} 56. Ke3 {[%emt 0:00:17]} Rxb2 {[%emt 0:00:04]} 57. Rxa6 {[%emt 0:00:03]} 1/2-1/2

[Event "ESP-ch Teams Honor 2024"]
[Site "Melilla"]
[Date "2024.10.14"]
[Round "3.12"]
[White "Matnadze Bujiashvili, Ann"]
[Black "Khademalsharieh, Sarasadat"]
[Result "0-1"]
[ECO "A07"]
[WhiteElo "2309"]
[BlackElo "2478"]
[Annotator "TA"]
[PlyCount "86"]
[EventDate "2024.10.11"]
[EventType "team-tourn"]
[EventCountry "ESP"]
[SourceTitle "playchess.com"]
[Source "ChessBase"]
[SourceQuality "1"]
[WhiteTeam "Benalmadena"]
[BlackTeam "Silla"]
[TimeControl "5400+30"]

{[%evp 9,86,-6,-8,-26,0,-20,-7,0,0,-56,-13,-67,23,24,34,0,18,20,21,25,52,29,31,25,28,17,17,8,23,18,11,0,0,0,0,0,12,14,39,46,41,0,0,0,0,-43,-38,-40,0,-11,-3,-127,-112,-139,-145,-150,-151,-148,-138,-154,-134,-131,-127,-227,-229,-240,-251,-225,-234,-288,-286,-257,-256,-729,-722,-1614,-1604,-29993,-29994]} 1. Nf3 {[%emt 0:00:07]} d5 {[%emt 0:00:16]} 2. g3 {[%emt 0:00:18]} g6 {[%emt 0:00:48]} 3. Bg2 {[%emt 0:00:26]} c6 {[%emt 0:01:08]} 4. c4 {[%emt 0:01:39]} dxc4 {[%emt 0:01:24]} 5. a4 {[%emt 0:02:33]} Bg7 {[%emt 0:03:07]} 6. Na3 {[%emt 0:00:20][%cal Bb1a3,Ba3c4,Bc4e3][%mdl 32]} Qd5 {[%emt 0:05:23]} 7. O-O {[%emt 0:02:55]} Nf6 {[%emt 0:05:41]} 8. Qc2 {[%emt 0:14:17] The position is equal.} Be6 {[%emt 0:02:17]} 9. h4 {[%emt 0:02:35]} (9. Ne1 $11 Qh5 10. d4) 9... Qf5 {[%emt 0:14:14]} 10. Qc3 {[%emt 0:09:08]} (10. Qxf5 $11 gxf5 11. Nd4) 10... Bd5 {[%emt 0:04:50]} ({Black should play} 10... Nh5 $15 11. e4 Qxe4) 11. Nxc4 $11 {[%emt 0:03:46]} O-O {[%emt 0:01:36]} 12. d3 {[%emt 0:06:37] Repels Ne4} Qc8 {[%emt 0:05:52]} 13. Qc2 {[%emt 0:05:00]} c5 {[%emt 0:09:59]} 14. Ne3 {[%emt 0:08:10]} Be6 {[%emt 0:04:42]} 15. Ng5 {[%emt 0:00:37]} Bd7 {[%emt 0:00:24]} 16. Bd2 {[%emt 0:02:16]} Na6 {[%emt 0:00:59]} 17. Rfc1 {[%emt 0:01:07]} Bc6 {[%emt 0:02:58]} 18. Qb3 {[%emt 0:02:56]} Bxg2 {[%emt 0:01:39]} 19. Kxg2 {[%emt 0:00:20]} b6 {[%emt 0:02:16]} 20. Kg1 {[%emt 0:03:29]} Rb8 {[%emt 0:04:30]} 21. Qb5 {[%emt 0:02:07]} Nc7 {[%emt 0:01:17]} 22. Qc4 {[%emt 0:03:04]} Qd7 {[%emt 0:02:02]} 23. b4 {[%emt 0:06:00]} h6 {[%emt 0:03:48]} (23... Nfe8 {is interesting.} 24. Rab1 Nd6 25. Qa2 Na6) 24. Nf3 {[%emt 0:00:11]} Nfd5 {[%emt 0:00:10]} 25. Rab1 {[%emt 0:01:34]} cxb4 {[%emt 0:00:48]} 26. Bxb4 {[%emt 0:05:22]} Rfc8 {[%emt 0:00:55]} 27. Bd2 {[%emt 0:06:11]} Nxe3 $1 {[%emt 0:00:16]} 28. fxe3 {[%emt 0:00:08]} Nd5 {[%emt 0:00:45]} (28... Ne8 $5 29. Qf4 Rxc1+ 30. Rxc1 Nd6 $14) 29. Qb5 {[%emt 0:00:49]} Qd6 {[%emt 0:04:46]} (29... Qxb5 {simplifies} 30. Rxc8+ Rxc8 31. Rxb5 e6) 30. Kg2 {[%emt 0:03:03]} (30. Rxc8+ $1 $11 Rxc8 31. Kg2) 30... Bc3 $1 $17 {[%emt 0:02:39] Strongly threatening ...Bxd2.} 31. e4 {[%emt 0:03:05] [#]} Rc5 {[%emt 0:02:29]} 32. Qb3 {[%emt 0:00:57]} Bxd2 {[%emt 0:00:20]} 33. Nxd2 {[%emt 0:01:25]} Ne3+ {[%emt 0:02:44]} 34. Kf3 {[%emt 0:00:41] [#]} Nf5 {[%emt 0:00:15][%mdl 512] Black has more active pieces.} 35. exf5 {[%emt 0:01:27]} Qc6+ {[%emt 0:00:05]} 36. Ke3 {[%emt 0:02:58]} (36. Ne4 $17 {was necessary.} Rxc1 37. fxg6) 36... Rxc1 $19 {[%emt 0:00:25]} 37. Rxc1 {[%emt 0:00:29]} Qxc1 {[%emt 0:00:05]} 38. fxg6 {[%emt 0:00:05][%mdl 4096] Endgame. KQR-KQN} Rf8 {[%emt 0:00:26]} 39. d4 {[%emt 0:01:12]} Qg1+ {[%emt 0:00:51]} 40. Ke4 {[%emt 0:00:10]} Qg2+ {[%emt 0:00:06]} 41. Kf4 $2 {[%emt 0:00:46]} (41. Qf3 Qh3 (41... Qxf3+ $2 42. Nxf3 fxg6 43. g4 $19) 42. gxf7+ Rxf7 43. Qh5) 41... Qxe2 {[%emt 0:00:33]} 42. Ne4 {[%emt 0:00:24]} Kg7 {[%emt 0:00:10]} 43. Qb4 {[%emt 0:00:42]} fxg6+ {[%emt 0:00:15] Weighted Error Value: White=0.72/Black=0.08 (flawless) .  Mistake:       	White=5     	Black=1      Inaccurate:     	White=4     	Black=3      OK:         	White=9     	Black=17     Best:        	White=4     	Black=2      Strong:       	---       	Black=2      Brilliant:      	---       	Black=1} 0-1